[Event "50th La Roda Open 2024"]
[Site "La Roda"]
[Date "2024.03.31"]
[Round "8.3"]
[White "Siddharth, Jagadeesh"]
[Black "Iturrizaga Bonelli, Eduardo"]
[Result "1-0"]
[ECO "B38"]
[WhiteElo "2490"]
[BlackElo "2588"]
[Annotator "TA"]
[PlyCount "67"]
[EventDate "2024.03.27"]
[EventType "swiss"]
[EventCountry "ESP"]
[SourceTitle "playchess.com"]
[Source "ChessBase"]
[SourceQuality "1"]
[TimeControl "5400+30"]

{[%evp 21,67,25,34,35,32,29,36,47,41,37,35,37,62,45,61,58,118,110,97,92,106,123,111,120,92,99,120,104,100,0,116,116,246,120,108,24,210,210,210,212,761,762,1022,1008,993,888,2566,-127]} 1. e4 {[%emt 0:00:06]} c5 {[%emt 0:06:45]} 2. Nf3 {[%emt 0:00:08]} Nc6 {[%emt 0:00:41]} 3. d4 {[%emt 0:00:07]} cxd4 {[%emt 0:00:08]} 4. Nxd4 {[%emt 0:00:07]} g6 {[%emt 0:00:39]} 5. c4 {[%emt 0:00:08]} Bg7 {[%emt 0:01:39]} 6. Be3 {[%emt 0:00:08]} Nf6 {[%emt 0:00:06]} 7. Nc3 {[%emt 0:00:06]} O-O {[%emt 0:03:36]} 8. Be2 {[%emt 0:00:06]} d6 {[%emt 0:00:05]} 9. O-O {[%emt 0:00:09]} Bd7 {[%emt 0:00:10]} 10. h3 {[%emt 0:00:08]} Nxd4 {[%emt 0:02:05]} 11. Bxd4 {[%emt 0:00:08]} Bc6 {[%emt 0:00:07]} 12. Qc2 {[%emt 0:00:07]} a5 {[%emt 0:00:05][%cal Ba7a5,Ba5a4][%mdl 32]} 13. Rad1 {[%emt 0:00:09]} a4 {[%emt 0:03:18]} 14. c5 {[%emt 0:00:07] White is slightly better.} Qa5 {[%emt 0:00:05]} 15. cxd6 {[%emt 0:00:06]} exd6 {[%emt 0:00:03]} 16. a3 {[%emt 0:00:16]} Rfe8 {[%emt 0:05:45]} 17. Bd3 {[%emt 0:00:10]} Rac8 {[%emt 0:01:10][%cal Of6e4]} 18. Qd2 {[%emt 0:03:34]} Qh5 {[%emt 0:39:18]} (18... d5 $14) 19. Qf4 {[%emt 0:08:25]} g5 {[%emt 0:04:56]} 20. Qg3 {[%emt 0:02:00] White is more active.} Nxe4 {[%emt 0:06:00]} 21. Bxe4 {[%emt 0:01:24]} Bxe4 {[%emt 0:00:05]} 22. Bxg7 {[%emt 0:00:56]} (22. Nxa4 $2 Bc2 23. Nc3 Bxd1 24. Bxg7 Be2 25. Nxe2 Kxg7 $19) 22... Kxg7 {[%emt 0:00:05]} 23. Nb5 {[%emt 0:00:10]} Rc2 {[%emt 0:04:37]} 24. Rde1 {[%emt 0:08:02]} (24. Rxd6 Qh4 25. Qxh4 gxh4) 24... Qg6 {[%emt 0:06:03]} 25. Qxd6 {[%emt 0:00:23]} (25. Nxd6 $16 Re6 26. Nxe4 Rxe4 27. Rxe4 Qxe4 28. Qxg5+ Qg6 29. Qf4) 25... Re6 {[%emt 0:02:43]} (25... Bc6 $1 $11 {keeps the balance.} 26. Rxe8 Bxe8) 26. Qd4+ $16 {[%emt 0:01:18]} Kh6 {[%emt 0:00:11] [#]} (26... Kg8 $16 {keeps fighting.}) 27. Qd8 {[%emt 0:10:06]} (27. Qxa4 Rxb2 28. Nd4 Rf6 $11) (27. Qh8 $1 $18 {and the rest is easy. Nd4 is the strong threat.} Bd3 28. Nd4 Rxe1 29. Rxe1) 27... Kg7 {[%emt 0:11:01][%cal Oh7h6]} 28. Re3 {[%emt 0:08:15]} (28. f3 $16 Bf5 29. Nd4 Rxe1 30. Rxe1) 28... Rc4 {[%emt 0:02:32]} (28... Rxb2 $2 {is the wrong capture.} 29. Nc7 Rbb6 30. Qd4+ (30. Nxe6+ Rxe6 31. Qd4+ Kg8 $18) 30... Kg8 31. Nxe6 Rxe6 32. Rfe1 $18 (32. Qxa4 Bc6 $18)) (28... h6 $1 $11) 29. Nc7 $18 {[%emt 0:01:36][%cal Bb5c7,Bc7e8,Be8d6,Bd6f7][%mdl 32]} Re5 {[%emt 0:00:30]} 30. Ne8+ {[%emt 0:00:22]} Kh6 $2 {[%emt 0:00:20]} (30... Rxe8 31. Qxe8 Qf5) 31. Nd6 {[%emt 0:01:45] [#] Threatens to win with Qf8+. White is clearly winning.} Rc6 {[%emt 0:00:16]} 32. Qf8+ {[%emt 0:03:49]} ({Weaker is} 32. Nxb7 Rb5 $16) 32... Kh5 {[%emt 0:00:02]} 33. Nxf7 {[%emt 0:01:10]} ({Stronger than} 33. Nxb7 Bxg2 34. Rxe5 Bxf1 $11) 33... Ree6 {[%emt 0:01:17]} 34. g4+ {[%emt 0:00:09][%mdl 32768] Weighted Error Value: White=0.24 (precise) /Black=0.43.  Loses game:     	---       	Black=1      Mistake:       	White=3     	Black=4      Inaccurate:     	---       	Black=1      OK:         	White=8     	Black=6      Best:        	White=2     	Black=1     . Loss on time!?} 1-0

[Event "50th La Roda Open 2024"]
[Site "La Roda"]
[Date "2024.03.31"]
[Round "8.4"]
[White "Karthik Venkataraman"]
[Black "Elias Reyes, Jorge Roberto"]
[Result "1-0"]
[ECO "B22"]
[WhiteElo "2609"]
[BlackElo "2473"]
[Annotator "TA"]
[PlyCount "53"]
[EventDate "2024.03.27"]
[EventType "swiss"]
[EventCountry "ESP"]
[SourceTitle "playchess.com"]
[Source "ChessBase"]
[SourceQuality "1"]
[TimeControl "5400+30"]

{[%evp 9,53,0,11,0,0,0,10,14,20,15,31,26,26,-16,-10,0,0,-10,14,14,8,0,0,0,8,10,16,10,6,0,0,0,0,0,0,0,107,100,150,143,305,314,843,860,792,770]} 1. e4 {[%emt 0:03:16][%cal Be2e4,Be4e5][%mdl 32]} c5 {[%emt 0:01:24]} 2. Nf3 {[%emt 0:00:06]} e6 {[%emt 0:00:16]} 3. c3 {[%emt 0:01:14]} Nf6 {[%emt 0:00:13]} 4. e5 {[%emt 0:00:06]} Nd5 {[%emt 0:00:05]} 5. a3 {[%emt 0:00:04]} d6 {[%emt 0:03:23]} 6. d4 {[%emt 0:00:29]} cxd4 {[%emt 0:01:12]} 7. c4 {[%emt 0:00:06]} Ne7 {[%emt 0:08:03] [#] Threatens to win with ...dxe5.} 8. exd6 {[%emt 0:03:19] The position is equal.} Qxd6 {[%emt 0:00:07]} 9. Qxd4 {[%emt 0:00:10]} Qxd4 {[%emt 0:02:40]} 10. Nxd4 {[%emt 0:00:02]} a6 {[%emt 0:00:43] Inhibits Nb5.} 11. f4 {[%emt 0:02:00]} g6 {[%emt 0:04:14]} 12. Nc3 {[%emt 0:00:45]} Bg7 {[%emt 0:00:42]} 13. Be3 {[%emt 0:00:09]} Bd7 {[%emt 0:18:15]} 14. O-O-O {[%emt 0:10:04][%cal Ba1d1,Bd1d4,Bd4d6][%mdl 32]} Nf5 {[%emt 0:01:33]} 15. Bf2 {[%emt 0:02:51]} Nxd4 {[%emt 0:04:19]} 16. Bxd4 {[%emt 0:00:05]} Bxd4 {[%emt 0:00:09]} 17. Rxd4 {[%emt 0:00:04]} Bc6 {[%emt 0:06:32] Black is weak on the dark squares} 18. b4 {[%emt 0:00:31]} b6 {[%emt 0:00:15]} 19. h4 {[%emt 0:02:45]} h5 {[%emt 0:02:55]} 20. Rh3 {[%emt 0:00:29]} Nd7 {[%emt 0:08:57]} 21. Rd6 {[%emt 0:09:26]} Rc8 {[%emt 0:05:31]} 22. c5 {[%emt 0:16:10]} bxc5 {[%emt 0:15:08]} (22... Rc7 $11) 23. Bxa6 $16 {[%emt 0:00:16]} Rc7 {[%emt 0:00:07]} (23... Ke7 $142 24. Bxc8 Kxd6 25. Rd3+ Ke7 26. Bxd7 Bxd7) 24. b5 $36 {[%emt 0:01:28][%cal Bb4b5,Bb5a6][%mdl 2080] Black is under strong pressure. White has more active pieces.} Bb7 {[%emt 0:07:40] [#]} (24... Bxg2 $16 {keeps fighting.} 25. Rhd3 Ra7) 25. Rhd3 $1 $18 {[%emt 0:00:18]} Bxa6 $2 {[%emt 0:01:04]} (25... Ke7 26. Rxd7+ Rxd7 27. Rxd7+ Kxd7) 26. bxa6 {[%emt 0:47:17]} c4 {[%emt 0:00:42]} 27. Rd1 {[%emt 0:00:00] Weighted Error Value: White=0.03 (flawless) /Black=0.28 (precise) .  Loses game:     	---       	Black=1      Mistake:       	---       	Black=3      Inaccurate:     	White=1     	---        OK:         	White=6     	Black=9      Best:        	White=2     	---        Strong:       	White=1     	---} 1-0

[Event "50th La Roda Open 2024"]
[Site "La Roda"]
[Date "2024.03.31"]
[Round "8.5"]
[White "Liu, Zexu"]
[Black "Pranav Vijay"]
[Result "1/2-1/2"]
[ECO "A13"]
[WhiteElo "2325"]
[BlackElo "2252"]
[Annotator "RC"]
[PlyCount "107"]
[EventDate "2024.03.27"]
[EventType "swiss"]
[EventCountry "ESP"]
[SourceTitle "playchess.com"]
[Source "ChessBase"]
[SourceQuality "1"]
[TimeControl "5400+30"]

1. Nf3 {[%emt 0:00:03]} Nf6 {[%emt 0:04:52]} 2. c4 {[%emt 0:00:04]} e6 {[%emt 0:00:11]} 3. g3 {[%emt 0:00:04]} d5 {[%emt 0:00:22]} 4. Bg2 {[%emt 0:00:17]} d4 {[%emt 0:00:20]} 5. O-O {[%emt 0:00:19]} c5 {[%emt 0:01:15]} 6. e3 {[%emt 0:00:55]} Nc6 {[%emt 0:00:12]} 7. exd4 {[%emt 0:00:16]} cxd4 {[%emt 0:00:11]} 8. d3 {[%emt 0:00:03]} h6 {[%emt 0:00:23]} 9. Na3 {[%emt 0:02:35]} Bc5 {[%emt 0:12:46]} 10. Nc2 {[%emt 0:02:15]} a5 {[%emt 0:00:26]} 11. b3 {[%emt 0:00:55]} O-O {[%emt 0:02:27]} 12. Ba3 {[%emt 0:03:52]} Bxa3 {[%emt 0:05:29]} 13. Nxa3 {[%emt 0:00:05]} e5 {[%emt 0:00:18]} 14. Re1 {[%emt 0:06:42]} Re8 {[%emt 0:08:58]} 15. Nb5 {[%emt 0:04:45]} Bg4 {[%emt 0:07:17]} 16. h3 {[%emt 0:02:11]} Bh5 {[%emt 0:01:57]} 17. g4 {[%emt 0:16:43]} Bg6 {[%emt 0:00:08]} 18. Nh4 {[%emt 0:00:17]} Bh7 {[%emt 0:01:03]} 19. Nf5 {[%emt 0:00:37]} Re6 {[%emt 0:20:27]} 20. c5 {[%emt 0:11:42]} Rb8 {[%emt 0:03:57]} 21. Rc1 {[%emt 0:09:51]} Qd7 {[%emt 0:02:40]} 22. Nbd6 {[%emt 0:02:12]} Bg6 {[%emt 0:01:47]} 23. a3 {[%emt 0:08:53]} Qd8 {[%emt 0:06:00]} 24. Rc4 {[%emt 0:07:53]} h5 {[%emt 0:03:26]} 25. b4 {[%emt 0:01:59]} axb4 {[%emt 0:01:40]} 26. axb4 {[%emt 0:00:02]} hxg4 {[%emt 0:04:53]} 27. hxg4 {[%emt 0:00:04]} Bxf5 {[%emt 0:00:55]} 28. gxf5 {[%emt 0:00:07]} Rxd6 {[%emt 0:00:20]} 29. cxd6 {[%emt 0:00:02]} Qxd6 {[%emt 0:00:02]} 30. Qd2 {[%emt 0:04:25]} Ne7 {[%emt 0:00:55]} 31. Rc5 {[%emt 0:06:06]} Nd7 {[%emt 0:00:13]} 32. Rc4 {[%emt 0:01:28]} Nxf5 {[%emt 0:01:53]} 33. Rec1 {[%emt 0:00:06]} Ne7 {[%emt 0:03:09]} 34. b5 {[%emt 0:00:01]} b6 {[%emt 0:01:01]} 35. Qc2 {[%emt 0:03:15]} Nc5 {[%emt 0:02:19]} 36. Rxc5 {[%emt 0:00:32]} bxc5 {[%emt 0:00:01]} 37. Qxc5 {[%emt 0:00:02]} Qe6 {[%emt 0:00:16]} 38. Ra1 {[%emt 0:01:46]} Ng6 {[%emt 0:01:17]} 39. Qc6 {[%emt 0:06:36]} Nf4 {[%emt 0:01:31]} 40. Ra8 {[%emt 0:00:00]} Rxa8 {[%emt 0:00:08]} 41. Qxa8+ {[%emt 0:00:00]} Kh7 {[%emt 0:00:06]} 42. Qc6 {[%emt 0:00:00]} Qb3 {[%emt 0:02:01]} 43. b6 {[%emt 0:00:00]} f5 {[%emt 0:00:53]} 44. b7 {[%emt 0:00:00]} e4 {[%emt 0:00:48]} 45. Qc8 {[%emt 0:00:00]} Qd1+ {[%emt 0:00:13]} 46. Kh2 {[%emt 0:00:43]} Qh5+ {[%emt 0:00:18]} 47. Kg1 {[%emt 0:00:04]} Qd1+ {[%emt 0:01:42]} 48. Kh2 {[%emt 0:00:02]} Qh5+ {[%emt 0:00:30]} 49. Kg1 {[%emt 0:00:03]} Ne2+ {[%emt 0:00:32]} 50. Kf1 {[%emt 0:00:02]} Ng3+ {[%emt 0:00:26]} 51. Kg1 {[%emt 0:00:04]} Ne2+ {[%emt 0:00:19]} 52. Kf1 {[%emt 0:00:02]} Ng3+ {[%emt 0:00:43]} 53. Kg1 {[%emt 0:00:02]} Ne2+ {[%emt 0:00:29]} 54. Kf1 {[%emt 0:06:28]} 1/2-1/2

[Event "50th La Roda Open 2024"]
[Site "La Roda"]
[Date "2024.03.31"]
[Round "8.6"]
[White "Gonzalez Lema, Carlos"]
[Black "Peralta, Fernando"]
[Result "0-1"]
[ECO "E48"]
[WhiteElo "2224"]
[BlackElo "2580"]
[Annotator "TA"]
[PlyCount "104"]
[EventDate "2024.03.27"]
[EventType "swiss"]
[EventCountry "ESP"]
[SourceTitle "playchess.com"]
[Source "ChessBase"]
[SourceQuality "1"]
[TimeControl "5400+30"]

{[%evp 12,104,-6,-5,-18,-42,0,-39,-22,-40,-36,-43,-37,-55,-55,-51,-44,-48,-45,-42,-49,-52,-50,-50,-14,-26,-29,-47,-39,-39,-45,-45,-31,-31,-23,-46,-22,-37,-26,-47,-43,-43,-51,-50,-35,-66,-62,-64,-52,-68,-82,-83,-58,-72,-63,-147,-152,-139,-110,-142,-152,-155,-157,-155,-153,-276,-123,-124,-134,-147,-139,-226,-229,-281,-276,-364,-399,-418,-375,-466,-545,-546,-554,-565,-547,-525,-514,-5651,-5643,-5631,-5206,-1762,-1790,-29982,-29983]} 1. d4 {[%emt 0:09:34]} Nf6 {[%emt 0:00:09]} 2. c4 {[%emt 0:00:19]} e6 {[%emt 0:00:05]} 3. Nc3 {[%emt 0:00:28]} Bb4 {[%emt 0:00:07]} 4. e3 {[%emt 0:00:05]} O-O {[%emt 0:00:40]} 5. Bd3 {[%emt 0:00:13]} d5 {[%emt 0:00:26]} 6. Nge2 {[%emt 0:00:41]} dxc4 {[%emt 0:00:42]} 7. Bxc4 {[%emt 0:00:07]} c5 {[%emt 0:00:08]} 8. Bd2 {[%emt 0:03:18]} cxd4 {[%emt 0:08:18]} 9. exd4 {[%emt 0:00:31]} Nc6 {[%emt 0:01:49] Black is slightly better.} 10. Be3 {[%emt 0:00:07]} b6 {[%emt 0:02:18]} 11. a3 {[%emt 0:01:25]} Bd6 {[%emt 0:01:10]} 12. h3 {[%emt 0:03:09]} Bb7 {[%emt 0:01:29]} 13. O-O {[%emt 0:01:22]} Rc8 {[%emt 0:02:03]} 14. Qd3 {[%emt 0:05:09]} h6 {[%emt 0:05:17]} 15. Rfd1 {[%emt 0:05:14]} Ne7 {[%emt 0:00:58]} 16. Ba6 {[%emt 0:01:24]} Qd7 {[%emt 0:06:43]} 17. Rac1 {[%emt 0:01:40]} Ned5 {[%emt 0:04:19]} 18. Nxd5 {[%emt 0:03:15]} (18. Bxb7 {looks sharper.} Qxb7 19. Nxd5 Nxd5 20. Nc3) 18... Nxd5 {[%emt 0:00:38]} 19. Rxc8 {[%emt 0:03:06]} Qxc8 {[%emt 0:00:17]} 20. Bxb7 {[%emt 0:00:12]} Qxb7 {[%emt 0:00:03]} 21. Rc1 {[%emt 0:01:20]} Rd8 {[%emt 0:01:39]} 22. Nc3 {[%emt 0:06:26]} Nf6 {[%emt 0:01:40]} 23. Ne2 {[%emt 0:01:47]} Bb8 {[%emt 0:02:42]} 24. Qc2 {[%emt 0:05:10]} Nd5 {[%emt 0:02:35]} 25. Nc3 {[%emt 0:00:50]} Ne7 $40 {[%emt 0:12:10][%mdl 128] White needs to defend precisely.} 26. Ne2 {[%emt 0:03:27]} b5 {[%emt 0:17:40]} 27. Qb3 {[%emt 0:04:50]} Qd7 {[%emt 0:00:57]} 28. Rc5 {[%emt 0:01:11]} a6 {[%emt 0:00:27]} 29. Rc1 {[%emt 0:05:17]} Nd5 {[%emt 0:03:02]} 30. Nc3 {[%emt 0:00:18]} Nxe3 {[%emt 0:01:52]} 31. fxe3 {[%emt 0:00:06]} Qd6 {[%emt 0:00:28]} 32. Ne2 {[%emt 0:00:33]} e5 $1 {[%emt 0:05:38]} 33. d5 {[%emt 0:02:04]} Ba7 $1 $17 {[%emt 0:01:01]} (33... Qxd5 $2 {is the wrong capture.} 34. Qxd5 Rxd5 35. Rc8+ Kh7 36. Rxb8 $18) 34. Rd1 {[%emt 0:00:42]} Qb6 {[%emt 0:03:01]} 35. Rd3 {[%emt 0:02:02] [#]} e4 $1 {[%emt 0:00:29]} 36. Rd4 {[%emt 0:00:13]} Qg6 {[%emt 0:00:53]} 37. Rd1 {[%emt 0:00:32]} Qg5 {[%emt 0:00:35] Black is more active.} 38. d6 {[%emt 0:02:38]} (38. Kh1 $17) 38... Qxe3+ {[%emt 0:05:58]} (38... Bxe3+ $19 {is more deadly.} 39. Kh1 Bd2) 39. Qxe3 {[%emt 0:00:03]} Bxe3+ $19 {[%emt 0:00:04][%mdl 4096] Endgame. KRB-KRN} 40. Kf1 {[%emt 0:02:49]} f5 {[%emt 0:03:56]} 41. d7 {[%emt 0:01:49]} (41. a4 $17 {was necessary.}) 41... Kf7 {[%emt 0:00:50] And now ...Ke6 would win.} 42. Nc3 {[%emt 0:01:20]} Bf4 {[%emt 0:02:10] Repels Rd6} 43. g4 {[%emt 0:04:44] [#]} g6 {[%emt 0:00:10]} 44. a4 {[%emt 0:01:23]} b4 {[%emt 0:00:24]} 45. Nd5 {[%emt 0:00:04]} Rxd7 {[%emt 0:00:14]} 46. Ke2 {[%emt 0:00:01]} Be5 {[%emt 0:01:09] Hoping for ...f4.} 47. Nxb4 {[%emt 0:00:14]} Rb7 {[%emt 0:00:14]} 48. Nxa6 {[%emt 0:00:35]} Rxb2+ {[%emt 0:00:04]} 49. Rd2 {[%emt 0:00:03]} (49. Ke3 $142 Rb3+ 50. Kf2) 49... Rxd2+ {[%emt 0:00:49]} 50. Kxd2 {[%emt 0:00:04]} Bd6 {[%emt 0:00:02] Threatens to win with ...Ke6.} 51. gxf5 {[%emt 0:02:05]} gxf5 {[%emt 0:00:03] ( -> ...f4)} 52. Kc3 {[%emt 0:00:04]} e3 {[%emt 0:00:13] Weighted Error Value: White=0.43/Black=0.09 (flawless) .  Mistake:       	White=4     	Black=1      Inaccurate:     	White=3     	Black=2      OK:         	White=7     	Black=20     Best:        	White=2     	Black=4      Strong:       	---       	Black=2} 0-1

[Event "50th La Roda Open 2024"]
[Site "La Roda"]
[Date "2024.03.31"]
[Round "8.7"]
[White "Martinez Ramirez, Lennis"]
[Black "Newrkla, Katharina"]
[Result "1-0"]
[ECO "E93"]
[WhiteElo "2450"]
[BlackElo "2213"]
[Annotator "TA"]
[PlyCount "89"]
[EventDate "2024.03.27"]
[EventType "swiss"]
[EventCountry "ESP"]
[SourceTitle "playchess.com"]
[Source "ChessBase"]
[SourceQuality "1"]
[TimeControl "5400+30"]

{[%evp 15,89,38,29,26,23,19,23,22,40,37,32,28,75,77,91,92,95,111,112,94,111,103,105,65,81,74,97,39,34,41,58,-25,-26,-27,-7,-48,-27,-77,-81,-84,-86,-121,-74,-117,-131,-153,-121,-277,-269,-250,-265,-260,-177,-208,-213,-215,-205,-191,-90,-279,-137,-127,0,0,62,86,108,114,966,959,29991,29992,29992,29990,29992,29991]} 1. d4 {[%emt 0:01:55]} Nf6 {[%emt 0:00:10]} 2. Nf3 {[%emt 0:00:56]} g6 {[%emt 0:00:06]} 3. c4 {[%emt 0:00:35]} Bg7 {[%emt 0:00:05]} 4. Nc3 {[%emt 0:00:05]} O-O {[%emt 0:00:04]} 5. e4 {[%emt 0:00:06]} d6 {[%emt 0:00:03]} 6. Be2 {[%emt 0:00:05]} Nbd7 {[%emt 0:00:16]} 7. Qc2 {[%emt 0:03:59]} e5 {[%emt 0:00:51]} 8. d5 {[%emt 0:02:28]} a5 {[%emt 0:02:19]} 9. Be3 {[%emt 0:02:14]} Ng4 {[%emt 0:04:08]} 10. Bg5 {[%emt 0:00:14]} f6 {[%emt 0:00:05]} 11. Bd2 {[%emt 0:02:17] White has an edge.} Nc5 {[%emt 0:08:37]} 12. h3 {[%emt 0:00:49] Prevents f5} Nh6 {[%emt 0:00:09]} 13. g4 {[%emt 0:08:38]} Kh8 {[%emt 0:25:38]} (13... f5 $11) 14. O-O-O $16 {[%emt 0:05:19]} Bd7 {[%emt 0:00:44]} 15. Rdg1 {[%emt 0:02:51]} c6 {[%emt 0:01:52]} 16. Be3 {[%emt 0:03:01]} cxd5 {[%emt 0:01:12]} 17. Bxc5 {[%emt 0:00:11]} (17. exd5 Qe7 $14) (17. Nxd5 Ba4 18. Qb1 Bc6 $14) (17. cxd5 $6 Rc8 $11) 17... dxc5 {[%emt 0:00:10]} 18. Nxd5 {[%emt 0:00:15]} a4 {[%emt 0:03:41]} 19. Nd2 {[%emt 0:02:57] White is more active.} Nf7 {[%emt 0:07:40]} 20. h4 {[%emt 0:00:14]} Bh6 {[%emt 0:02:46] [#]} 21. g5 {[%emt 0:00:08]} fxg5 $14 {[%emt 0:00:07]} 22. h5 {[%emt 0:00:04]} Ra6 {[%emt 0:02:26]} 23. Bg4 {[%emt 0:00:47]} (23. hxg6 $14 Rxg6 24. Bh5) 23... Bxg4 $11 {[%emt 0:02:55]} 24. Rxg4 {[%emt 0:00:12]} Qd7 {[%emt 0:01:06]} 25. f3 {[%emt 0:00:07]} Nd8 {[%emt 0:01:53][%cal Bf7d8,Bd8c6,Bc6d4][%mdl 32] ...gxh5 is the strong threat.} 26. Qc3 {[%emt 0:00:14]} (26. Qd1 $11 {keeps the balance.}) 26... Nc6 $17 {[%emt 0:04:38]} 27. hxg6 {[%emt 0:03:02] [#]} Nd4 $1 {[%emt 0:00:07] Hoping for ...Ne2+.} 28. Qa3 {[%emt 0:01:46]} (28. Rxh6 Ne2+ (28... Rxg6 29. Rh2 $16) 29. Kc2 Nxc3 $19) (28. Rg2 Rxg6) 28... Rxg6 {[%emt 0:00:48][%cal Of8f3] Strongly threatening ...Rxf3!} 29. Qxc5 {[%emt 0:00:44][%cal Oh1h6]} Rf7 $1 {[%emt 0:05:19][%cal Oh6f8] aiming for ...Bf8!} (29... Nxf3 $2 30. Rxh6 Rf7 31. Rxg6 hxg6 32. Rg3 $18) 30. Ne3 {[%emt 0:17:22]} Bf8 {[%emt 0:04:29]} (30... Nxf3 31. Nxf3 Rxf3 32. Nf5 Rxf5 (32... Bg7 33. Rd1 $11) 33. Rd1 $11 (33. exf5 Qxf5 34. Qg1 a3 $17)) 31. Qa5 {[%emt 0:14:59] [#]} (31. Qxe5+ $17 Bg7 32. Qa5) 31... a3 $1 $19 {[%emt 0:03:38]} (31... Nxf3 32. Nxf3 Rxf3 33. Nf5 $17) 32. Rg2 {[%emt 0:03:10]} axb2+ {[%emt 0:00:11]} (32... Nxf3 33. Nxf3 Rxf3 34. Nf5) 33. Kb1 {[%emt 0:00:26] White is weak on the dark squares} Nc6 {[%emt 0:05:37]} 34. Qc3 {[%emt 0:00:53][%cal Oe3f5] Inhibits Qd3+.} Bb4 {[%emt 0:00:09]} 35. Qc2 {[%emt 0:00:42]} Nd4 {[%emt 0:00:53][%csl LRc2,LRf3]} 36. Qxb2 {[%emt 0:00:43]} Qa4 {[%emt 0:09:04]} (36... Bxd2 $19 {has better winning chances.} 37. Rxd2 Qc7 (37... Rxf3 38. Nf5 $17)) 37. Nd5 {[%emt 0:00:50]} (37. Nf5 $17 {was worth a try.} Rd7 38. Nxd4 exd4 (38... Rxd4 39. Nb3 $15) 39. f4) 37... Ba3 {[%emt 0:00:03]} (37... Bxd2 $19 {and Black stays clearly on top.} 38. Qxd2 Qxc4 (38... Rxf3 $2 39. Rgh2 $19) (38... Nxf3 $2 39. Qc3 $19)) 38. Qc3 $17 {[%emt 0:00:11][%cal Of3f4] [#]} Rh6 {[%emt 0:01:47]} 39. Rhg1 $11 {[%emt 0:00:08]} Rh5 {[%emt 0:01:21] [#]} (39... Rg7 $11) 40. f4 $1 $14 {[%emt 0:02:21]} Rh3 {[%emt 0:00:34] Prevents Nf3} (40... Bc5 41. Nb3) 41. Rxg5 $1 $40 {[%emt 0:01:43][%csl Gg1][%cal Rg5g8][%mdl 128] White wants a kill.} (41. Qxh3 $2 Qc2+ 42. Ka1 Qb2#) 41... h5 $2 {[%emt 0:01:35][%mdl 8192] [#]} 42. f5 $1 $18 {[%emt 0:05:07] White threatens Nb3 and mate.} Rf8 {[%emt 0:01:23]} (42... Qb4+ 43. Nxb4) 43. Nb3 {[%emt 0:01:10] White mates.} (43. Qxh3 $2 {leads to mate.} Qc2+ 44. Ka1 Qb2#) 43... Rh2 {[%emt 0:00:40]} 44. Nxd4 {[%emt 0:01:11] Excellent horsemanship.} Bb2 {[%emt 0:00:26]} 45. Qg3 {[%emt 0:03:26] Weighted Error Value: White=0.24 (precise) /Black=0.42.  Loses game:     	White=1     	Black=1      Mistake:       	White=4     	Black=5      Inaccurate:     	White=3     	Black=2      OK:         	White=15    	Black=14     Best:        	White=4     	Black=1      Strong:       	White=1     	Black=3      Brilliant:      	White=1     	---} 1-0